[Event "*** Titled Tuesday Blitz"]
[Site "Chess.com"]
[Date "2019.07.02"]
[Round "2"]
[White "chessking2151"]
[Black "MITerryble"]
[Result "0-1"]
[WhiteElo "2576"]
[BlackElo "2809"]
[TimeControl "180+2"]
[EndTime "13:26:30 PDT"]
[Termination "MITerryble won by resignation"]

1. e4 {[%clk 0:03:01.9]} 1... e6 {[%clk 0:03:00.3]} 2. d4 {[%clk 0:03:01.1]}
2... d5 {[%clk 0:03:01.4]} 3. Nc3 {[%clk 0:03:00.3]} 3... Nf6 {[%clk 0:03:02.1]}
4. e5 {[%clk 0:03:00.9]} 4... Nfd7 {[%clk 0:03:02.2]} 5. f4 {[%clk 0:03:02.4]}
5... c5 {[%clk 0:03:03.4]} 6. Nf3 {[%clk 0:02:51.7]} 6... Nc6 {[%clk 0:03:04.2]}
7. Ne2 {[%clk 0:02:43.7]} 7... Rb8 {[%clk 0:03:01.4]} 8. c3 {[%clk 0:02:32.7]}
8... b5 {[%clk 0:03:01.9]} 9. a3 {[%clk 0:02:32.4]} 9... a5 {[%clk 0:03:02.2]}
10. dxc5 {[%clk 0:02:21.2]} 10... Nxc5 {[%clk 0:03:02.8]} 11. Ned4 {[%clk
0:02:21.8]} 11... Nxd4 {[%clk 0:03:04]} 12. Nxd4 {[%clk 0:02:22]} 12... Bd7
{[%clk 0:03:05.2]} 13. Be3 {[%clk 0:02:15]} 13... Be7 {[%clk 0:03:03.2]} 14. g3
{[%clk 0:02:04.8]} 14... O-O {[%clk 0:03:01.8]} 15. Bg2 {[%clk 0:01:51]} 15...
b4 {[%clk 0:03:03.1]} 16. axb4 {[%clk 0:01:51.2]} 16... axb4 {[%clk 0:03:05]}
17. O-O {[%clk 0:01:52]} 17... bxc3 {[%clk 0:02:43.5]} 18. bxc3 {[%clk
0:01:50.1]} 18... Qc7 {[%clk 0:02:45.1]} 19. f5 {[%clk 0:01:34.5]} 19... exf5
{[%clk 0:02:43]} 20. Bf4 {[%clk 0:01:18.7]} 20... Be6 {[%clk 0:02:38.6]} 21. Qc2
{[%clk 0:00:44.9]} 21... Ne4 {[%clk 0:02:33.9]} 22. Rac1 {[%clk 0:00:42.2]}
22... Rfc8 {[%clk 0:02:30.9]} 23. Bd2 {[%clk 0:00:34]} 23... Bc5 {[%clk
0:02:07.5]} 24. Qd3 {[%clk 0:00:28]} 24... Rb2 {[%clk 0:02:08.7]} 25. Bf4 {[%clk
0:00:21.2]} 25... Qb6 {[%clk 0:02:01.4]} 26. Be3 {[%clk 0:00:12.8]} 26... g6
{[%clk 0:01:56.8]} 27. Rb1 {[%clk 0:00:11.2]} 27... h5 {[%clk 0:01:37.6]} 28.
Rxb2 {[%clk 0:00:09.9]} 28... Qxb2 {[%clk 0:01:38.5]} 29. Rb1 {[%clk 0:00:10.8]}
29... Qxc3 {[%clk 0:01:27.4]} 30. Bxe4 {[%clk 0:00:11.1]} 30... Bxd4 {[%clk
0:01:16.4]} 31. Bxd4 {[%clk 0:00:09.7]} 31... Qc4 {[%clk 0:01:17.5]} 32. Qxc4
{[%clk 0:00:07]} 32... Rxc4 {[%clk 0:01:18.3]} 33. Bxd5 {[%clk 0:00:05.7]} 33...
Bxd5 {[%clk 0:01:11.5]} 34. Rb8+ {[%clk 0:00:03.7]} 34... Kg7 {[%clk 0:01:11.3]}
35. Bb2 {[%clk 0:00:05.4]} 35... Be6 {[%clk 0:01:11.3]} 36. Kf1 {[%clk
0:00:06.5]} 36... g5 {[%clk 0:01:06.4]} 37. Kg1 {[%clk 0:00:05.6]} 37... f4
{[%clk 0:01:06]} 38. gxf4 {[%clk 0:00:06.5]} 38... Rxf4 {[%clk 0:01:07.9]} 39.
Rd8 {[%clk 0:00:06.2]} 39... Rg4+ {[%clk 0:01:04]} 40. Kf2 {[%clk 0:00:06.8]}
40... Rf4+ {[%clk 0:01:05.3]} 41. Kg1 {[%clk 0:00:07.8]} 41... Kg6 {[%clk
0:01:06.1]} 42. Rd2 {[%clk 0:00:08.3]} 42... h4 {[%clk 0:01:05.6]} 43. Rf2
{[%clk 0:00:08.8]} 43... Rc4 {[%clk 0:01:05.6]} 44. Rd2 {[%clk 0:00:09.8]} 44...
g4 {[%clk 0:01:02.7]} 45. Kf2 {[%clk 0:00:10.5]} 45... Rf4+ {[%clk 0:01:03.3]}
46. Ke1 {[%clk 0:00:08.8]} 46... Bc4 {[%clk 0:00:51.4]} 47. Rf2 {[%clk
0:00:08.6]} 47... Re4+ {[%clk 0:00:51.9]} 48. Kd2 {[%clk 0:00:08.7]} 48... Be6
{[%clk 0:00:53.4]} 49. Kd3 {[%clk 0:00:09.2]} 49... Re1 {[%clk 0:00:51.9]} 50.
Bc3 {[%clk 0:00:07.5]} 50... Rg1 {[%clk 0:00:52]} 51. Bd2 {[%clk 0:00:05.3]}
51... g3 {[%clk 0:00:50]} 52. Rf6+ {[%clk 0:00:05.9]} 52... Kh5 {[%clk
0:00:50.2]} 53. hxg3 {[%clk 0:00:06.6]} 53... Rxg3+ {[%clk 0:00:41.6]} 54. Ke2
{[%clk 0:00:06.3]} 54... Ra3 {[%clk 0:00:39.9]} 55. Be1 {[%clk 0:00:03.9]} 55...
h3 {[%clk 0:00:39.4]} 56. Rf4 {[%clk 0:00:02.1]} 56... Kg5 {[%clk 0:00:37.5]}
57. Rh4 {[%clk 0:00:02.1]} 57... Ra2+ {[%clk 0:00:27.5]} 58. Kf1 {[%clk
0:00:03.5]} 58... Ra1 {[%clk 0:00:28.1]} 59. Rh8 {[%clk 0:00:03.5]} 59... Kf4
{[%clk 0:00:28.5]} 60. Kf2 {[%clk 0:00:04.3]} 60... Ra2+ {[%clk 0:00:28.6]} 61.
Kf1 {[%clk 0:00:04.8]} 61... Bc4+ {[%clk 0:00:22.3]} 62. Kg1 {[%clk 0:00:05.1]}
62... Rg2+ {[%clk 0:00:24.2]} 63. Kh1 {[%clk 0:00:06.4]} 63... Bd5 {[%clk
0:00:26]} 64. Rh4+ {[%clk 0:00:05.8]} 64... Kg5 {[%clk 0:00:22.5]} 65. Rd4
{[%clk 0:00:02.6]} 65... Bf3 {[%clk 0:00:20.7]} 66. Rd3 {[%clk 0:00:02.9]} 66...
Kf4 {[%clk 0:00:21.4]} 67. Rd4+ {[%clk 0:00:03.7]} 67... Kxe5 {[%clk 0:00:21.5]}
68. Rh4 {[%clk 0:00:04.2]} 68... Re2+ {[%clk 0:00:21.4]} 69. Kg1 {[%clk
0:00:05.7]} 69... Rg2+ {[%clk 0:00:21.1]} 70. Kf1 {[%clk 0:00:06.6]} 0-1

[Event "*** Titled Tuesday Blitz"]
[Site "Chess.com"]
[Date "2019.07.02"]
[Round "2"]
[White "VerdeNotte"]
[Black "darsen_sanzhaev"]
[Result "1-0"]
[WhiteElo "2846"]
[BlackElo "2638"]
[TimeControl "180+2"]
[EndTime "13:26:54 PDT"]
[Termination "VerdeNotte won by resignation"]

1. Nf3 {[%clk 0:03:01.9]} 1... d5 {[%clk 0:02:59.2]} 2. g3 {[%clk 0:03:02.2]}
2... c6 {[%clk 0:02:57.2]} 3. Bg2 {[%clk 0:03:03.1]} 3... Bg4 {[%clk 0:02:58.8]}
4. c4 {[%clk 0:03:03.5]} 4... Nd7 {[%clk 0:02:57.8]} 5. cxd5 {[%clk 0:03:01.9]}
5... cxd5 {[%clk 0:02:59.7]} 6. Qa4 {[%clk 0:03:02.9]} 6... Bxf3 {[%clk
0:02:59.3]} 7. Bxf3 {[%clk 0:03:03.7]} 7... e6 {[%clk 0:03:00.8]} 8. O-O {[%clk
0:03:03.4]} 8... Nf6 {[%clk 0:03:01.8]} 9. d3 {[%clk 0:03:04.2]} 9... Bc5 {[%clk
0:02:57.6]} 10. d4 {[%clk 0:03:04.4]} 10... Bd6 {[%clk 0:02:52.2]} 11. e3 {[%clk
0:03:04.7]} 11... O-O {[%clk 0:02:52.3]} 12. Nc3 {[%clk 0:03:05.9]} 12... a6
{[%clk 0:02:53.6]} 13. Bd2 {[%clk 0:03:05.2]} 13... b5 {[%clk 0:02:54.5]} 14.
Qd1 {[%clk 0:03:04.9]} 14... Nb6 {[%clk 0:02:54.9]} 15. b3 {[%clk 0:03:02.8]}
15... Rc8 {[%clk 0:02:52.3]} 16. Be2 {[%clk 0:03:02.8]} 16... b4 {[%clk
0:02:46.3]} 17. Nb1 {[%clk 0:02:59.6]} 17... a5 {[%clk 0:02:45.9]} 18. f3 {[%clk
0:02:52.3]} 18... Qc7 {[%clk 0:02:45.4]} 19. Bd3 {[%clk 0:02:52.6]} 19... Bxg3
{[%clk 0:02:43.7]} 20. f4 {[%clk 0:02:45.4]} 20... Bh4 {[%clk 0:02:42.9]} 21.
Qf3 {[%clk 0:02:42.7]} 21... Ne4 {[%clk 0:02:40.8]} 22. Bxe4 {[%clk 0:02:42.8]}
22... dxe4 {[%clk 0:02:42.7]} 23. Qxe4 {[%clk 0:02:44.4]} 23... Qc2 {[%clk
0:02:28.5]} 24. Qxc2 {[%clk 0:02:44.9]} 24... Rxc2 {[%clk 0:02:30.4]} 25. a3
{[%clk 0:02:46]} 25... Be7 {[%clk 0:02:03.1]} 26. axb4 {[%clk 0:02:44.3]} 26...
Bxb4 {[%clk 0:01:57.3]} 27. Rf2 {[%clk 0:02:36.1]} 27... Rfc8 {[%clk 0:01:47.5]}
28. Bxb4 {[%clk 0:02:23.8]} 28... axb4 {[%clk 0:01:47.9]} 29. Nd2 {[%clk
0:02:16.2]} 29... Nd5 {[%clk 0:01:48.9]} 30. Nc4 {[%clk 0:02:15.8]} 30... Rxf2
{[%clk 0:00:51.5]} 31. Kxf2 {[%clk 0:02:15.8]} 31... Nc3 {[%clk 0:00:45.9]} 32.
Ra7 {[%clk 0:02:12.2]} 32... f5 {[%clk 0:00:32.5]} 33. Ra6 {[%clk 0:02:03]}
33... Rxc4 {[%clk 0:00:27.3]} 34. bxc4 {[%clk 0:01:57.1]} 34... b3 {[%clk
0:00:28.7]} 35. e4 {[%clk 0:01:17.7]} 35... b2 {[%clk 0:00:26.9]} 36. Rb6 {[%clk
0:01:18.4]} 36... b1=Q {[%clk 0:00:15.6]} 37. Rxb1 {[%clk 0:01:18.6]} 37... Nxb1
{[%clk 0:00:17.5]} 38. exf5 {[%clk 0:01:14]} 38... exf5 {[%clk 0:00:18]} 39. Ke3
{[%clk 0:01:10.2]} 39... Nc3 {[%clk 0:00:18]} 40. d5 {[%clk 0:01:10.9]} 40...
Kf7 {[%clk 0:00:17.7]} 41. Kd4 {[%clk 0:01:12]} 41... Ne4 {[%clk 0:00:16.2]} 42.
Ke5 {[%clk 0:01:07.5]} 42... g6 {[%clk 0:00:17.5]} 43. d6 {[%clk 0:01:08.1]}
43... Nc5 {[%clk 0:00:15.4]} 44. Kd5 {[%clk 0:01:09.2]} 44... Nd3 {[%clk
0:00:15.2]} 45. Kc6 {[%clk 0:00:51]} 45... Nxf4 {[%clk 0:00:16.4]} 46. c5 {[%clk
0:00:45]} 46... Ne6 {[%clk 0:00:16.8]} 47. Kd5 {[%clk 0:00:43.3]} 47... f4
{[%clk 0:00:17.8]} 48. c6 {[%clk 0:00:43.1]} 48... f3 {[%clk 0:00:09.8]} 49. c7
{[%clk 0:00:44.5]} 49... f2 {[%clk 0:00:10.9]} 50. c8=Q {[%clk 0:00:44.1]} 50...
Nf4+ {[%clk 0:00:11.9]} 51. Ke4 {[%clk 0:00:27.3]} 51... f1=Q {[%clk 0:00:12.7]}
52. Qd7+ {[%clk 0:00:28.3]} 52... Kf8 {[%clk 0:00:09.6]} 53. Qe7+ {[%clk
0:00:26.4]} 53... Kg8 {[%clk 0:00:10.9]} 54. Qe8+ {[%clk 0:00:25.9]} 54... Kg7
{[%clk 0:00:12.1]} 55. Qe5+ {[%clk 0:00:27.8]} 55... Kg8 {[%clk 0:00:11.7]} 56.
Qxf4 {[%clk 0:00:24.8]} 56... Qc4+ {[%clk 0:00:08.7]} 57. Ke5 {[%clk 0:00:24.5]}
57... Qb5+ {[%clk 0:00:06.1]} 58. Kf6 {[%clk 0:00:21.5]} 58... Qd7 {[%clk
0:00:04]} 59. Qc4+ {[%clk 0:00:20]} 59... Kf8 {[%clk 0:00:05.5]} 60. Ke5 {[%clk
0:00:14.9]} 60... Qf5+ {[%clk 0:00:06]} 61. Kd4 {[%clk 0:00:16.2]} 61... Qf4+
{[%clk 0:00:05.5]} 62. Kc5 {[%clk 0:00:17.2]} 62... Qf5+ {[%clk 0:00:04.5]} 63.
Kb6 {[%clk 0:00:16]} 63... Qd7 {[%clk 0:00:03.7]} 64. Qf4+ {[%clk 0:00:13.9]}
64... Ke8 {[%clk 0:00:03.9]} 65. Qe5+ {[%clk 0:00:12.7]} 65... Kf8 {[%clk
0:00:02.3]} 66. Qh8+ {[%clk 0:00:13]} 66... Kf7 {[%clk 0:00:03.7]} 67. Qxh7+
{[%clk 0:00:14.4]} 67... Ke6 {[%clk 0:00:05.6]} 68. Qxd7+ {[%clk 0:00:15.2]}
68... Kxd7 {[%clk 0:00:06.9]} 69. Kc5 {[%clk 0:00:17.1]} 69... g5 {[%clk
0:00:06.1]} 70. h3 {[%clk 0:00:18.1]} 70... Kd8 {[%clk 0:00:07]} 71. Kd4 {[%clk
0:00:19]} 71... Kd7 {[%clk 0:00:07.9]} 72. Kd5 {[%clk 0:00:19.9]} 72... Kd8
{[%clk 0:00:09.4]} 73. Ke6 {[%clk 0:00:21.1]} 73... Ke8 {[%clk 0:00:10.5]} 74.
Kf6 {[%clk 0:00:18.6]} 74... Kd7 {[%clk 0:00:12]} 75. Kxg5 {[%clk 0:00:19.8]}
75... Kxd6 {[%clk 0:00:13.2]} 76. Kf6 {[%clk 0:00:21.1]} 1-0

[Event "*** Titled Tuesday Blitz"]
[Site "Chess.com"]
[Date "2019.07.02"]
[Round "2"]
[White "SmoothAsAHedgehog"]
[Black "WarlordX"]
[Result "0-1"]
[WhiteElo "2605"]
[BlackElo "2376"]
[TimeControl "180+2"]
[EndTime "13:27:01 PDT"]
[Termination "WarlordX won by checkmate"]

1. d4 {[%clk 0:03:01.9]} 1... Nf6 {[%clk 0:02:33.1]} 2. c4 {[%clk 0:03:01.8]}
2... e6 {[%clk 0:02:33.8]} 3. Nc3 {[%clk 0:03:02.6]} 3... Bb4 {[%clk 0:02:35.4]}
4. Qc2 {[%clk 0:03:03.2]} 4... b6 {[%clk 0:02:36.4]} 5. e4 {[%clk 0:03:03.7]}
5... Bxc3+ {[%clk 0:02:37.6]} 6. bxc3 {[%clk 0:03:04.2]} 6... d6 {[%clk
0:02:39.3]} 7. Nf3 {[%clk 0:03:02.5]} 7... c5 {[%clk 0:02:40.1]} 8. Bg5 {[%clk
0:02:51]} 8... h6 {[%clk 0:02:40.9]} 9. Bh4 {[%clk 0:02:51.8]} 9... Nc6 {[%clk
0:02:40.5]} 10. Bg3 {[%clk 0:01:31.4]} 10... Nh5 {[%clk 0:02:30.4]} 11. Bh4
{[%clk 0:00:58.2]} 11... Qc7 {[%clk 0:02:17.4]} 12. d5 {[%clk 0:00:52.3]} 12...
Na5 {[%clk 0:02:15.4]} 13. Bd3 {[%clk 0:00:48.6]} 13... e5 {[%clk 0:02:15.5]}
14. O-O {[%clk 0:00:47.9]} 14... O-O {[%clk 0:02:13]} 15. Nd2 {[%clk 0:00:45.9]}
15... Nf4 {[%clk 0:02:12.2]} 16. Bg3 {[%clk 0:00:38]} 16... Nxd3 {[%clk
0:02:13]} 17. Qxd3 {[%clk 0:00:38.6]} 17... Ba6 {[%clk 0:02:14.9]} 18. f4 {[%clk
0:00:38]} 18... f6 {[%clk 0:02:13.7]} 19. Rf3 {[%clk 0:00:26.2]} 19... Qd7
{[%clk 0:02:14.6]} 20. a4 {[%clk 0:00:25.3]} 20... Rae8 {[%clk 0:02:13.5]} 21.
Raf1 {[%clk 0:00:25.3]} 21... Qxa4 {[%clk 0:02:14.1]} 22. fxe5 {[%clk
0:00:23.5]} 22... fxe5 {[%clk 0:02:15]} 23. Rxf8+ {[%clk 0:00:23]} 23... Rxf8
{[%clk 0:02:16.9]} 24. Rxf8+ {[%clk 0:00:23.7]} 24... Kxf8 {[%clk 0:02:18.8]}
25. Qf3+ {[%clk 0:00:24.3]} 25... Kg8 {[%clk 0:02:18.4]} 26. Qf5 {[%clk
0:00:21.6]} 26... Qe8 {[%clk 0:02:13.3]} 27. Qf1 {[%clk 0:00:20.3]} 27... Qg6
{[%clk 0:02:10.6]} 28. Kh1 {[%clk 0:00:19.6]} 28... Qg5 {[%clk 0:02:09.9]} 29.
Qe2 {[%clk 0:00:20.7]} 29... Qf6 {[%clk 0:01:57.9]} 30. Kg1 {[%clk 0:00:21.6]}
30... Qf7 {[%clk 0:01:48.7]} 31. h3 {[%clk 0:00:20.7]} 31... Qe8 {[%clk
0:01:48.8]} 32. Kh2 {[%clk 0:00:19.7]} 32... Qa4 {[%clk 0:01:48.2]} 33. Qg4
{[%clk 0:00:20.8]} 33... Qe8 {[%clk 0:01:37.2]} 34. Qe2 {[%clk 0:00:20.9]} 34...
Bc8 {[%clk 0:01:28.5]} 35. Bh4 {[%clk 0:00:20.6]} 35... Bd7 {[%clk 0:01:22.8]}
36. Qf1 {[%clk 0:00:20.3]} 36... Qf7 {[%clk 0:01:23.3]} 37. Qe2 {[%clk
0:00:21.2]} 37... Be8 {[%clk 0:01:23.3]} 38. Qg4 {[%clk 0:00:20.8]} 38... Qd7
{[%clk 0:01:23.9]} 39. Qf3 {[%clk 0:00:19.5]} 39... Bg6 {[%clk 0:01:23.2]} 40.
Qg3 {[%clk 0:00:19.4]} 40... Kh7 {[%clk 0:01:23.5]} 41. Qf3 {[%clk 0:00:19]}
41... Qe8 {[%clk 0:01:18.3]} 42. Qf1 {[%clk 0:00:19.1]} 42... Kg8 {[%clk
0:01:11.9]} 43. Qf3 {[%clk 0:00:18.4]} 43... Bh5 {[%clk 0:01:12.5]} 44. Qf1
{[%clk 0:00:16.7]} 44... g5 {[%clk 0:01:13.5]} 45. Bg3 {[%clk 0:00:17.3]} 45...
Qf7 {[%clk 0:01:13.1]} 46. Qe1 {[%clk 0:00:18.4]} 46... Bg6 {[%clk 0:01:14]} 47.
h4 {[%clk 0:00:19.2]} 47... Qh7 {[%clk 0:01:11.8]} 48. hxg5 {[%clk 0:00:18.8]}
48... hxg5+ {[%clk 0:01:13.7]} 49. Kg1 {[%clk 0:00:20.3]} 49... Kf7 {[%clk
0:01:12.3]} 50. Qe3 {[%clk 0:00:21.2]} 50... Qh5 {[%clk 0:01:11.4]} 51. Qe1
{[%clk 0:00:21.4]} 51... Ke7 {[%clk 0:01:12]} 52. Bf2 {[%clk 0:00:22.4]} 52...
Qg4 {[%clk 0:01:11.9]} 53. Be3 {[%clk 0:00:21.9]} 53... Kd7 {[%clk 0:01:10.6]}
54. Bf2 {[%clk 0:00:21.6]} 54... Kc7 {[%clk 0:01:10.2]} 55. Qe3 {[%clk
0:00:18.2]} 55... Nb7 {[%clk 0:01:07.3]} 56. Qe1 {[%clk 0:00:17.8]} 56... a5
{[%clk 0:01:08.3]} 57. Qb1 {[%clk 0:00:17.3]} 57... Qe2 {[%clk 0:01:07.1]} 58.
Qc2 {[%clk 0:00:16.3]} 58... a4 {[%clk 0:01:02.4]} 59. Qc1 {[%clk 0:00:14.4]}
59... a3 {[%clk 0:00:55.2]} 60. Nb3 {[%clk 0:00:10.2]} 60... a2 {[%clk
0:00:54.1]} 61. Qxg5 {[%clk 0:00:11.1]} 61... Qd1+ {[%clk 0:00:50.7]} 62. Kh2
{[%clk 0:00:12.4]} 62... Qh5+ {[%clk 0:00:51.5]} 63. Qxh5 {[%clk 0:00:12.5]}
63... Bxh5 {[%clk 0:00:53.4]} 64. Kg3 {[%clk 0:00:13.5]} 64... Bd1 {[%clk
0:00:54.9]} 65. Na1 {[%clk 0:00:13.6]} 65... Na5 {[%clk 0:00:56.6]} 66. Kh4
{[%clk 0:00:14.7]} 66... Nb3 {[%clk 0:00:57.9]} 67. g4 {[%clk 0:00:10.8]} 67...
Nxa1 {[%clk 0:00:58.8]} 68. g5 {[%clk 0:00:12.3]} 68... Kd7 {[%clk 0:00:53.8]}
69. g6 {[%clk 0:00:12.5]} 69... Ke7 {[%clk 0:00:55.2]} 70. Kg5 {[%clk
0:00:13.4]} 70... Kf8 {[%clk 0:00:55.8]} 71. Kf6 {[%clk 0:00:13.2]} 71... Bg4
{[%clk 0:00:44.6]} 72. g7+ {[%clk 0:00:06.2]} 72... Kg8 {[%clk 0:00:46.1]} 73.
Ke7 {[%clk 0:00:06.8]} 73... Nb3 {[%clk 0:00:46.3]} 74. Kxd6 {[%clk 0:00:08.1]}
74... a1=Q {[%clk 0:00:48]} 75. Kxe5 {[%clk 0:00:09.2]} 75... Qxc3+ {[%clk
0:00:49.5]} 76. Kd6 {[%clk 0:00:10.5]} 76... Qxc4 {[%clk 0:00:50.9]} 77. e5
{[%clk 0:00:11]} 77... Bf3 {[%clk 0:00:51]} 78. e6 {[%clk 0:00:08.1]} 78...
Qxd5+ {[%clk 0:00:52.3]} 79. Ke7 {[%clk 0:00:09.2]} 79... Bg4 {[%clk 0:00:52.9]}
80. Bxc5 {[%clk 0:00:06]} 80... Qxe6+ {[%clk 0:00:52.9]} 81. Kd8 {[%clk
0:00:07.4]} 81... Qd7# {[%clk 0:00:54.5]} 0-1

[Event "*** Titled Tuesday Blitz"]
[Site "Chess.com"]
[Date "2019.07.02"]
[Round "2"]
[White "Cayse"]
[Black "severomorskij"]
[Result "0-1"]
[WhiteElo "2629"]
[BlackElo "2851"]
[TimeControl "180+2"]
[EndTime "13:27:02 PDT"]
[Termination "severomorskij won by checkmate"]

1. d4 {[%clk 0:03:01.9]} 1... Nf6 {[%clk 0:03:00.4]} 2. Bf4 {[%clk 0:03:02.7]}
2... c5 {[%clk 0:02:53.5]} 3. e3 {[%clk 0:02:56.9]} 3... Nd5 {[%clk 0:02:52.7]}
4. Bg3 {[%clk 0:02:52.6]} 4... Qb6 {[%clk 0:02:53.6]} 5. b3 {[%clk 0:02:39.4]}
5... cxd4 {[%clk 0:02:53.4]} 6. exd4 {[%clk 0:02:38.3]} 6... e6 {[%clk
0:02:35.4]} 7. c3 {[%clk 0:02:27.4]} 7... Nc6 {[%clk 0:02:09.9]} 8. Nf3 {[%clk
0:02:27.2]} 8... Be7 {[%clk 0:02:03.8]} 9. Be2 {[%clk 0:02:23.6]} 9... Nf6
{[%clk 0:01:58.5]} 10. Nbd2 {[%clk 0:02:19.2]} 10... d6 {[%clk 0:01:50.6]} 11.
O-O {[%clk 0:02:17.6]} 11... O-O {[%clk 0:01:51]} 12. b4 {[%clk 0:02:09.6]}
12... Nh5 {[%clk 0:01:37.1]} 13. a4 {[%clk 0:02:00.8]} 13... Nxg3 {[%clk
0:01:37]} 14. hxg3 {[%clk 0:02:02.7]} 14... Qd8 {[%clk 0:01:31]} 15. a5 {[%clk
0:02:02.7]} 15... g6 {[%clk 0:01:21.2]} 16. Nb3 {[%clk 0:01:56.2]} 16... Bf6
{[%clk 0:01:21.4]} 17. Re1 {[%clk 0:01:51.5]} 17... Bg7 {[%clk 0:01:19.5]} 18.
a6 {[%clk 0:01:45.9]} 18... b6 {[%clk 0:01:17.9]} 19. Nfd2 {[%clk 0:01:42.3]}
19... d5 {[%clk 0:01:01.6]} 20. Bf3 {[%clk 0:01:36.2]} 20... Bd7 {[%clk
0:01:01.7]} 21. Nc1 {[%clk 0:01:37.3]} 21... Rc8 {[%clk 0:01:01.9]} 22. Nd3
{[%clk 0:01:38.3]} 22... Ne7 {[%clk 0:01:02.6]} 23. Ra3 {[%clk 0:01:36.2]} 23...
Nf5 {[%clk 0:01:02.3]} 24. Nf1 {[%clk 0:01:37]} 24... Bb5 {[%clk 0:00:59.1]} 25.
Ne5 {[%clk 0:01:33.2]} 25... Bxf1 {[%clk 0:00:53.1]} 26. Kxf1 {[%clk 0:01:30.6]}
26... Nd6 {[%clk 0:00:54.3]} 27. Qd3 {[%clk 0:01:27.3]} 27... Qc7 {[%clk
0:00:48.3]} 28. Rb3 {[%clk 0:01:23.1]} 28... Nc4 {[%clk 0:00:43.9]} 29. Qe2
{[%clk 0:01:16.7]} 29... Bxe5 {[%clk 0:00:42.4]} 30. dxe5 {[%clk 0:01:17.9]}
30... Nd2+ {[%clk 0:00:43.2]} 31. Qxd2 {[%clk 0:01:16.6]} 31... Qc4+ {[%clk
0:00:44]} 32. Kg1 {[%clk 0:01:15.7]} 32... Qxb3 {[%clk 0:00:44.9]} 33. Re3
{[%clk 0:01:16.7]} 33... Rc7 {[%clk 0:00:38.1]} 34. Bd1 {[%clk 0:01:11.8]} 34...
Qb1 {[%clk 0:00:36]} 35. g4 {[%clk 0:01:03.4]} 35... Qa1 {[%clk 0:00:23.4]} 36.
Rh3 {[%clk 0:00:48.2]} 36... d4 {[%clk 0:00:20.9]} 37. cxd4 {[%clk 0:00:45.4]}
37... Rc1 {[%clk 0:00:17.9]} 38. Rd3 {[%clk 0:00:45.8]} 38... Qxa6 {[%clk
0:00:16.9]} 39. Kh2 {[%clk 0:00:46.2]} 39... Qa1 {[%clk 0:00:17.5]} 40. b5
{[%clk 0:00:28.2]} 40... Rfc8 {[%clk 0:00:16.9]} 41. Bf3 {[%clk 0:00:13.6]}
41... R1c3 {[%clk 0:00:16.3]} 42. Rxc3 {[%clk 0:00:10.3]} 42... Qxc3 {[%clk
0:00:16.7]} 43. Qf4 {[%clk 0:00:11.6]} 43... Qc1 {[%clk 0:00:15.5]} 44. Qf6
{[%clk 0:00:11.7]} 44... Qh6+ {[%clk 0:00:09.3]} 45. Kg3 {[%clk 0:00:12]} 45...
Qg7 {[%clk 0:00:08]} 46. Qe7 {[%clk 0:00:13.1]} 46... Qf8 {[%clk 0:00:07.3]} 47.
Qxa7 {[%clk 0:00:13.9]} 47... Qd8 {[%clk 0:00:08.3]} 48. d5 {[%clk 0:00:12.3]}
48... exd5 {[%clk 0:00:07.9]} 49. Qb7 {[%clk 0:00:13.3]} 49... Qc7 {[%clk
0:00:04.8]} 50. Qxd5 {[%clk 0:00:13.6]} 50... Re8 {[%clk 0:00:05.8]} 51. Kf4
{[%clk 0:00:14.9]} 51... Qe7 {[%clk 0:00:05.1]} 52. g5 {[%clk 0:00:14.6]} 52...
Rd8 {[%clk 0:00:05.5]} 53. Qc4 {[%clk 0:00:12.8]} 53... Re8 {[%clk 0:00:05.7]}
54. Qd5 {[%clk 0:00:12.5]} 54... Rd8 {[%clk 0:00:06.7]} 55. Qc4 {[%clk
0:00:12.2]} 55... Qd7 {[%clk 0:00:07.8]} 56. Be4 {[%clk 0:00:09.2]} 56... Qd4
{[%clk 0:00:06.1]} 57. Qc7 {[%clk 0:00:09.5]} 57... Qxf2+ {[%clk 0:00:06.5]} 58.
Kg4 {[%clk 0:00:09.9]} 58... Qe2+ {[%clk 0:00:06.5]} 59. Bf3 {[%clk 0:00:10.6]}
59... Qd3 {[%clk 0:00:07.4]} 60. Qxb6 {[%clk 0:00:11.6]} 60... Qf5+ {[%clk
0:00:04.1]} 61. Kh4 {[%clk 0:00:10.6]} 61... Qf4+ {[%clk 0:00:04.7]} 62. Kh3
{[%clk 0:00:11.9]} 62... Qxg5 {[%clk 0:00:05.6]} 63. Qc7 {[%clk 0:00:12.8]}
63... Re8 {[%clk 0:00:05.3]} 64. b6 {[%clk 0:00:13.1]} 64... Qxe5 {[%clk
0:00:06.1]} 65. Bg4 {[%clk 0:00:12.4]} 65... Qe3+ {[%clk 0:00:06.2]} 66. g3
{[%clk 0:00:13.4]} 66... Qe1 {[%clk 0:00:06.3]} 67. Bf3 {[%clk 0:00:13.6]} 67...
Qe6+ {[%clk 0:00:06.9]} 68. Bg4 {[%clk 0:00:13.7]} 68... Qe4 {[%clk 0:00:07.4]}
69. Bd7 {[%clk 0:00:14.4]} 69... Qh1+ {[%clk 0:00:07.8]} 70. Kg4 {[%clk
0:00:15.6]} 70... Re4+ {[%clk 0:00:08.7]} 71. Kg5 {[%clk 0:00:16.6]} 71... Qh5+
{[%clk 0:00:08.4]} 72. Kf6 {[%clk 0:00:16.9]} 72... Qf3+ {[%clk 0:00:08.5]} 73.
Kg5 {[%clk 0:00:17.7]} 73... f6+ {[%clk 0:00:08.1]} 74. Kh6 {[%clk 0:00:16.3]}
74... Qh5# {[%clk 0:00:09.4]} 0-1